bitfinex/quotes_SOLUSD_20220113
["timestamp","ask_amount","ask_price","bid_price","bid_amount"]
[1642046902488,9.5,149.45,149.35,39.7276]
[1642046902689,19.5392,149.45,149.35,39.7276]
[1642046903689,19.5392,149.45,149.35,39.2176]
[1642046903890,2.677,149.44,149.35,29.1778]
[1642046904091,10.0415,149.42,149.34,27.57419923]
[1642046904291,2.677,149.41,149.34,27.57419923]
[1642046904693,2.927,149.41,149.34,27.57419923]
[1642046906292,10.0438,149.39,149.34,27.57419923]
[1642046906694,10.2938,149.39,149.34,27.57419923]
[1642046906893,10.2938,149.39,149.31,26.2037]
[1642046907693,10.2938,149.39,149.31,2.677]
[1642046907897,32.26442391,149.38,149.28,33.68631519]
[1642046908095,10.0463,149.35,149.28,31.00831519]
[1642046908494,10.2963,149.35,149.28,31.00831519]
[1642046909496,10.2963,149.35,149.29,2.678]
[1642046910694,0.25,149.35,149.34,1.0]
[1642046910899,1.57439994,149.35,149.34,1.0]
[1642046911095,1.32439994,149.35,149.34,1.0]
[1642046911496,24.4913,149.4,149.34,4.03219997]
[1642046911694,23.7617,149.41,149.35,2.678]
[1642046911894,35.46345518,149.43,149.35,2.678]
[1642046912702,75.9646,149.42,149.35,2.678]
[1642046913305,10.0426,149.41,149.35,2.678]
[1642046913804,10.2926,149.41,149.35,2.678]
[1642046917435,2.677,149.4,149.34,1.0]
[1642046917635,10.0435,149.39,149.34,1.0]
[1642046918034,10.2935,149.39,149.34,1.0]
[1642046918435,32.58846665,149.38,149.34,1.0]
[1642046918637,10.045,149.37,149.34,1.0]
[1642046918837,32.83846665,149.38,149.34,1.0]
[1642046919041,0.25,149.38,149.35,4.74]
[1642046920136,25.62880859,149.39,149.35,4.74]
[1642046920339,35.67260859,149.39,149.35,4.74]
[1642046920537,35.92260859,149.39,149.35,4.74]
[1642046920739,35.92260859,149.39,149.34,1.0]
[1642046921339,2.678,149.38,149.34,1.0]
[1642046921537,10.0463,149.36,149.34,1.0]
[1642046921739,26.32439994,149.35,149.34,1.0]
[1642046922138,56.45395653,149.35,149.34,1.0]
[1642046923146,66.50075653,149.35,149.34,1.0]
[1642046924243,41.50075653,149.35,149.34,1.0]
[1642046926947,0.25,149.35,149.34,5.74]
[1642046928346,2.678,149.38,149.34,5.74]
[1642046928347,0.25,149.38,149.34,5.74]
[1642046929753,10.2939,149.39,149.34,5.74]
[1642046929947,0.25,149.39,149.34,5.74]
[1642046930148,10.2926,149.4,149.34,5.74]
[1642046930747,0.25,149.4,149.34,5.74]
[1642046931148,2.928,149.41,149.34,5.74]
[1642046931749,2.928,149.41,149.35,24.07499898]
[1642046932151,12.97,149.41,149.35,24.07499898]
[1642046933051,12.97,149.41,149.34,1.0]
[1642046933551,12.97,149.41,149.39,1.0]
[1642046933756,38.32439994,149.4,149.39,4.03219997]
[1642046933952,48.36709994,149.4,149.39,1.0]
[1642046934154,48.61709994,149.4,149.39,1.0]
[1642046934754,37.0,149.39,149.33,25.1932]
[1642046934957,37.0,149.39,149.33,2.678]
[1642046935154,10.0451,149.37,149.28,27.1398]
[1642046935353,10.0451,149.37,149.28,33.1398]
[1642046935555,10.2951,149.37,149.28,33.3898]
[1642046935755,10.2951,149.37,149.29,30.59335216]
[1642046936054,10.2951,149.37,149.3,2.678]
[1642046936853,0.25,149.37,149.3,2.928]
[1642046937054,0.25,149.37,149.31,0.26]
[1642046937254,23.297,149.39,149.32,2.678]
[1642046937655,23.297,149.39,149.31,2.678]
[1642046938254,33.3404,149.39,149.31,12.7209]
[1642046939358,23.297,149.39,149.31,12.7209]
[1642046940154,12.7206,149.41,149.31,12.9709]
[1642046940356,131.2299,149.42,149.32,24.5274]
[1642046940556,131.2299,149.42,149.33,10.041]
[1642046941557,131.4799,149.42,149.33,10.041]
[1642046941757,2.677,149.41,149.33,10.041]
[1642046942184,2.927,149.41,149.33,10.041]
[1642046942893,0.25,149.41,149.34,2.677]
[1642046943088,0.25,149.41,149.35,28.3734792]
[1642046943290,141.5213,149.42,149.35,28.3734792]
[1642046943490,2.677,149.41,149.34,25.9959]
[1642046943689,10.292,149.41,149.34,25.9959]
[1642046947093,10.292,149.41,149.34,2.677]
[1642046947490,12.969,149.41,149.34,2.677]
[1642046947690,12.969,149.41,149.34,25.6657]
[1642046948392,12.969,149.41,149.34,2.677]
[1642046948993,12.969,149.41,149.34,25.7382]
[1642046949993,10.292,149.41,149.34,25.7382]
[1642046950194,10.292,149.41,149.34,2.677]
[1642046950794,10.0453,149.37,149.34,2.677]
[1642046950997,1.32439994,149.36,149.34,2.677]
[1642046951196,0.25,149.36,149.35,4.74]
[1642046951395,0.25,149.36,149.35,3.03219997]
[1642046951996,0.25,149.36,149.3,2.678]
[1642046952199,10.2959,149.36,149.3,2.678]
[1642046952400,10.0459,149.36,149.3,2.678]
[1642046952597,10.2959,149.36,149.3,2.678]
[1642046956202,0.25,149.36,149.3,2.678]
[1642046956403,2.678,149.4,149.31,0.26]
[1642046956601,38.10543786,149.41,149.31,0.26]
[1642046956803,13.32183786,149.41,149.32,0.07]
[1642046957805,13.57183786,149.41,149.32,0.07]
[1642046958202,9.75,149.41,149.33,12.7197]
[1642046958403,9.75,149.41,149.34,26.85820052]
[1642046958603,9.75,149.41,149.35,2.677]
[1642046959005,13.32183786,149.44,149.35,2.677]
[1642046959204,3.82183786,149.44,149.35,80.1671]
[1642046959404,3.82183786,149.44,149.36,6.0]
[1642046959605,3.82183786,149.44,149.37,2.677]
[1642046960008,27.09144111,149.45,149.37,2.677]
[1642046960206,27.34144111,149.45,149.37,2.677]
[1642046961207,10.04,149.44,149.37,2.677]
[1642046961608,10.29,149.44,149.37,2.677]
[1642046963911,25.6682,149.46,149.37,2.677]
[1642046963912,2.677,149.46,149.37,2.677]
[1642046964112,76.90933786,149.47,149.37,10.289]
[1642046964313,76.90933786,149.47,149.38,2.677]
[1642046964513,76.90933786,149.47,149.38,25.8025]
[1642046964713,76.90933786,149.47,149.38,25.5425]
[1642046964912,24.7995799,149.46,149.38,25.4725]
[1642046965112,34.8384799,149.46,149.38,25.4725]
[1642046965315,2.677,149.45,149.38,22.7955]
[1642046965516,2.677,149.45,149.35,2.677]
[1642046965713,26.0191,149.45,149.37,6.0]
[1642046965912,26.0191,149.45,149.36,6.0]
[1642046966313,10.0406,149.43,149.36,6.0]
[1642046966713,10.2906,149.43,149.36,6.0]
[1642046967617,10.2906,149.43,149.37,2.677]
[1642046973142,10.2906,149.43,149.36,2.677]
[1642046977246,0.25,149.43,149.36,2.677]
[1642046977646,36.0589,149.45,149.36,2.677]
[1642046978351,36.0589,149.45,149.36,12.7168]
[1642046978551,36.0589,149.45,149.37,23.1315]
[1642046978747,33.3819,149.45,149.38,2.677]
[1642046983157,33.1319,149.45,149.38,2.677]
[1642046983959,10.0398,149.45,149.38,2.677]
[1642046984560,10.0398,149.45,149.38,12.7156]
[1642046984761,34.2995799,149.46,149.38,12.7156]
[1642046985161,34.2995799,149.46,149.38,2.677]
[1642046985361,57.1194799,149.46,149.38,2.677]
[1642046985761,67.4082799,149.46,149.38,2.677]
[1642046985960,70.0852799,149.46,149.38,2.677]
[1642046986166,71.76815431,149.46,149.38,2.677]
[1642046987063,75.58999217,149.46,149.38,2.677]
[1642046988589,75.58999217,149.46,149.37,23.1315]
[1642046991096,75.58999217,149.46,149.35,2.677]
[1642046991097,142.78999217,149.46,149.35,2.677]
[1642046992092,3.82183786,149.43,149.35,2.677]
[1642046992293,12.177,149.42,149.35,2.677]
[1642046992491,40.31805415,149.39,149.35,2.677]
[1642046992692,10.2934,149.39,149.35,2.677]
[1642046992894,0.25,149.39,149.35,2.677]
[1642046993900,2.677,149.4,149.35,2.677]
[1642046994104,2.677,149.4,149.32,31.0260531]
[1642046994302,23.7295,149.4,149.33,8.678]
[1642046994898,23.7295,149.4,149.33,32.1533]
[1642046996106,0.25,149.4,149.33,36.1953]
[1642046996303,0.25,149.4,149.34,0.26]
[1642046996506,0.25,149.41,149.34,0.26]
[1642046996803,74.6894,149.42,149.34,0.26]
[1642046997004,104.98753163,149.42,149.35,2.677]
[1642046998206,115.02883163,149.42,149.35,2.677]
[1642046998436,115.02883163,149.42,149.34,10.3014]
[1642047000607,84.7307,149.42,149.34,10.3014]
[1642047003409,109.7205,149.42,149.34,10.3014]
[1642047004613,109.7205,149.42,149.35,24.2357]
[1642047004815,109.7205,149.42,149.35,26.9127]
[1642047005614,109.4705,149.42,149.35,26.9127]
[1642047007416,109.7205,149.42,149.35,26.9127]
[1642047010919,109.7205,149.42,149.35,2.677]
[1642047011121,10.0438,149.39,149.32,31.0260531]
[1642047011522,10.2938,149.39,149.32,31.0260531]
[1642047011920,33.6079,149.39,149.32,31.0260531]
[1642047013119,33.6079,149.39,149.33,2.678]
[1642047013845,33.6079,149.39,149.33,25.736]
[1642047015650,33.6079,149.39,149.33,23.058]
[1642047016350,33.3579,149.39,149.33,23.058]
[1642047017652,33.6079,149.39,149.33,23.058]
[1642047021255,1.91109875,149.4,149.34,2.678]
[1642047021454,1.91109875,149.4,149.34,10.438]
[1642047021653,1.91109875,149.4,149.34,10.688]
[1642047021853,1.91109875,149.4,149.34,77.888]
[1642047022053,1.91109875,149.4,149.34,10.688]
[1642047022458,1.91109875,149.4,149.34,3.188]
[1642047022656,9.5,149.45,149.34,3.258]
[1642047022657,1.91109875,149.42,149.34,3.258]
[1642047022862,1.91109875,149.42,149.35,30.8204]
[1642047023059,1.91109875,149.42,149.36,2.677]
[1642047023259,1.91109875,149.42,149.36,2.937]
[1642047023659,1.91109875,149.42,149.36,3.187]
[1642047024059,1.91109875,149.42,149.36,2.937]
[1642047024260,1.91109875,149.42,149.36,13.2267]
[1642047024459,1.91109875,149.42,149.36,12.9767]
[1642047024693,1.91109875,149.43,149.36,12.9767]
[1642047024860,1.91109875,149.43,149.36,13.2267]
[1642047025062,2.16109875,149.43,149.36,13.2267]
[1642047026664,0.25,149.43,149.36,12.9767]
[1642047026960,0.25,149.43,149.38,24.26442317]
[1642047027162,2.16109875,149.44,149.38,24.26442317]
[1642047028162,2.16109875,149.44,149.38,34.30322317]
[1642047028362,2.16109875,149.44,149.39,2.677]
[1642047028962,2.16109875,149.44,149.38,26.94142317]
[1642047029161,4.83809875,149.44,149.37,24.1877]
[1642047029362,2.927,149.44,149.37,24.1877]
[1642047030265,12.967,149.44,149.37,24.1877]
[1642047030862,1.91109875,149.43,149.38,2.677]
[1642047031065,1.91109875,149.43,149.37,26.8647]
[1642047031263,2.16109875,149.43,149.37,26.8647]
[1642047031863,0.25,149.43,149.37,26.8647]
[1642047032192,10.041,149.43,149.37,26.8647]
[1642047032565,11.95209875,149.43,149.37,26.8647]
[1642047033367,10.041,149.43,149.37,26.8647]
[1642047034167,12.20209875,149.43,149.37,26.8647]
[1642047034466,12.20209875,149.43,149.37,24.1877]
[1642047035670,12.20209875,149.43,149.38,2.677]
[1642047036968,12.20209875,149.43,149.37,26.8647]
[1642047043883,12.20209875,149.43,149.37,2.677]
[1642047044082,2.677,149.42,149.33,2.677]
[1642047044282,10.0438,149.39,149.32,2.677]
[1642047044681,10.2938,149.39,149.32,2.677]
[1642047044882,10.2938,149.39,149.32,29.51315737]
[1642047045184,22.9794,149.4,149.32,39.55605737]
[1642047045383,22.9794,149.4,149.33,0.26]
[1642047045582,22.9794,149.4,149.34,2.678]
[1642047046583,23.2294,149.4,149.34,2.678]
[1642047047206,0.25,149.4,149.34,12.7198]
[1642047047606,10.0425,149.41,149.34,12.7198]
[1642047048206,26.27499875,149.42,149.34,12.7198]
[1642047048609,26.27499875,149.42,149.35,24.8734]
[1642047049208,26.52499875,149.42,149.35,24.8734]
[1642047049807,26.52499875,149.42,149.36,2.677]
[1642047050208,36.56649875,149.42,149.36,2.677]
[1642047051214,36.56649875,149.42,149.35,27.5504]
[1642047052809,36.56649875,149.42,149.33,2.677]
[1642047053009,2.677,149.41,149.33,2.677]
[1642047053212,10.0449,149.37,149.33,2.677]
[1642047053611,10.2949,149.37,149.33,2.677]
[1642047054810,0.25,149.37,149.33,2.677]
[1642047055212,10.294,149.38,149.33,2.677]
[1642047056512,10.294,149.38,149.32,51.54925737]
[1642047059713,10.294,149.38,149.33,2.678]
[1642047062417,2.678,149.37,149.33,2.678]
[1642047062616,10.0466,149.35,149.33,2.678]
[1642047062916,1.32439994,149.34,149.33,2.678]
[1642047063116,0.25,149.35,149.33,2.678]
[1642047063316,0.25,149.34,149.33,7.418]
[1642047063516,10.2969,149.34,149.33,7.418]
[1642047063920,4.58909875,149.38,149.34,47.0]
[1642047064120,1.91109875,149.38,149.34,47.0]
[1642047065217,2.16109875,149.38,149.34,47.0]
[1642047065418,0.25,149.38,149.35,2.678]
[1642047065820,2.16109875,149.41,149.36,4.74]
[1642047066218,0.25,149.41,149.36,4.74]
[1642047066621,2.16109875,149.42,149.36,4.74]
[1642047068122,12.20309875,149.42,149.36,4.74]
[1642047068322,2.16109875,149.42,149.36,4.74]
[1642047069328,2.0831969,149.42,149.36,14.7805]
[1642047069527,1.8331969,149.42,149.37,8.937]
[1642047069826,1.8331969,149.42,149.37,9.187]
[1642047070025,1.8331969,149.42,149.37,8.937]
[1642047070227,1.8331969,149.42,149.37,9.187]
[1642047070428,76.1774,149.45,149.37,9.187]
[1642047070627,76.1774,149.45,149.38,22.81024454]
[1642047070828,76.1774,149.45,149.39,2.677]
[1642047071027,76.4274,149.45,149.4,10.0376]
[1642047071231,76.4274,149.45,149.41,2.676]
[1642047071829,76.4274,149.45,149.38,50.32484454]
[1642047072028,76.4274,149.45,149.39,6.0]
[1642047072229,76.4274,149.45,149.38,50.32484454]
[1642047073231,76.4274,149.45,149.38,37.5532]
[1642047073464,76.4274,149.45,149.38,27.5146]
[1642047074133,76.4274,149.45,149.38,2.676]
[1642047074335,2.677,149.44,149.34,2.677]
[1642047074533,24.84505623,149.43,149.34,8.677]
[1642047074737,2.677,149.42,149.34,8.677]
[1642047074933,2.677,149.42,149.34,2.677]
[1642047075135,2.927,149.42,149.34,2.677]
[1642047075935,10.0428,149.41,149.34,2.677]
[1642047076133,10.2928,149.41,149.34,2.677]
[1642047077438,0.25,149.41,149.34,2.677]
[1642047077635,0.25,149.43,149.35,0.26]
[1642047077836,0.25,149.43,149.35,67.46]
[1642047078136,76.4274,149.45,149.36,23.5901]
[1642047078736,79.1044,149.45,149.36,23.5901]
[1642047079339,113.1775,149.45,149.36,23.5901]
[1642047079939,112.9275,149.45,149.36,90.7901]
[1642047080138,12.7171,149.45,149.37,0.26]
[1642047080338,10.0401,149.45,149.37,86.1768]
[1642047080738,10.0401,149.45,149.37,86.4268]
[1642047081339,10.0401,149.45,149.37,19.2268]
[1642047081540,10.2901,149.45,149.37,9.187]
[1642047081841,10.2901,149.45,149.37,8.927]
[1642047082038,10.2901,149.45,149.37,8.677]
[1642047083139,10.2901,149.45,149.37,2.677]
[1642047083340,12.9671,149.45,149.36,33.6305]
[1642047083544,12.9671,149.45,149.37,6.0]
[1642047084239,12.9671,149.45,149.36,23.5901]
[1642047089549,12.9671,149.45,149.37,2.677]
[1642047091845,10.2901,149.45,149.37,2.677]
[1642047103681,10.2901,149.45,149.37,12.7168]
[1642047105584,10.2901,149.45,149.38,24.5373]
[1642047108284,12.9671,149.45,149.38,24.5373]
[1642047109488,12.9671,149.45,149.36,2.677]
[1642047109686,12.9671,149.45,149.37,6.0]
[1642047116402,10.2901,149.45,149.37,6.0]
[1642047118910,10.2901,149.45,149.36,25.4593]
[1642047121012,10.0401,149.45,149.36,25.4593]
[1642047122539,10.0401,149.45,149.43,2.1900855]
[1642047122739,10.2901,149.45,149.43,2.1900855]
[1642047123144,31.32439994,149.44,149.43,2.1900855]
[1642047123345,41.36549994,149.44,149.43,2.1900855]
[1642047123547,41.61549994,149.44,149.43,2.1900855]
[1642047127644,11.61549994,149.44,149.43,2.1900855]
[1642047127849,1.57439994,149.44,149.43,2.1900855]
[1642047129147,27.57439994,149.44,149.43,2.1900855]
[1642047130646,1.57439994,149.44,149.43,2.1900855]
[1642047131848,0.25,149.44,149.43,6.9300855]
[1642047133251,0.25,149.44,149.43,2.1900855]
[1642047133751,0.25,149.44,149.43,6.9300855]
[1642047134655,0.25,149.44,149.43,2.1900855]
[1642047134854,9.5,149.47,149.43,2.1900855]
[1642047135255,3.82183786,149.48,149.43,2.1900855]
[1642047136061,3.82183786,149.48,149.44,6.0]
[1642047136254,4.07183786,149.48,149.44,6.0]
[1642047136653,0.25,149.48,149.44,6.0]
[1642047137156,30.46873786,149.51,149.44,6.0]
[1642047137353,30.21873786,149.51,149.44,6.0]
[1642047138958,30.21873786,149.51,149.43,12.2256855]
[1642047139157,30.21873786,149.51,149.43,2.1900855]
[1642047139158,36.6832,149.51,149.43,2.1900855]
[1642047139357,36.6832,149.51,149.43,4.8660855]
[1642047139557,9.5,149.49,149.43,4.8660855]
[1642047139758,12.426,149.49,149.43,2.1900855]
[1642047140359,10.0391,149.47,149.43,2.1900855]
[1642047140758,10.2891,149.47,149.43,2.1900855]
[1642047140992,0.25,149.47,149.43,2.1900855]
[1642047141663,12.9642,149.49,149.43,2.1900855]
[1642047143165,91.34707441,149.49,149.43,2.1900855]
[1642047143768,24.14707441,149.49,149.43,2.1900855]
[1642047145270,91.34707441,149.49,149.43,2.1900855]
[1642047146769,24.14707441,149.49,149.43,2.1900855]
[1642047146969,67.2,149.48,149.43,2.1900855]
[1642047147172,10.041,149.46,149.43,2.1900855]
[1642047147370,27.72450254,149.45,149.43,2.1900855]
[1642047147573,1.32439994,149.44,149.43,2.1900855]
[1642047147770,27.57439994,149.44,149.43,2.1900855]
[1642047149293,37.61569994,149.44,149.43,2.1900855]
[1642047150394,27.57439994,149.44,149.43,2.1900855]
[1642047154596,1.4965424,149.44,149.43,2.1900855]
[1642047159102,1.2465424,149.44,149.43,2.1900855]
[1642047159301,37.76530254,149.45,149.43,7.00794304]
[1642047160802,22.2154,149.47,149.43,7.00794304]
[1642047161003,19.5394,149.47,149.43,7.00794304]
[1642047161205,9.5,149.47,149.43,7.00794304]
[1642047161803,37.59240182,149.47,149.43,7.00794304]
[1642047162004,37.84240182,149.47,149.43,7.00794304]
[1642047163404,47.88130182,149.47,149.43,7.00794304]
[1642047165107,47.63130182,149.47,149.43,7.00794304]
[1642047166408,47.88130182,149.47,149.43,7.00794304]
[1642047167311,2.676,149.46,149.35,2.676]
[1642047167510,10.0432,149.41,149.34,49.0687]
[1642047167709,17.2012,149.41,149.34,49.0687]
[1642047167909,17.2012,149.41,149.34,46.3927]
[1642047168108,39.72874137,149.41,149.34,46.3927]
[1642047169411,39.72874137,149.41,149.35,2.677]
[1642047169811,7.158,149.41,149.35,2.677]
[1642047170013,0.25,149.41,149.35,2.677]
[1642047170210,10.2925,149.43,149.35,2.677]
[1642047170810,30.98165798,149.42,149.35,2.677]
[1642047171212,31.23165798,149.42,149.35,2.677]
[1642047171710,41.27415798,149.42,149.35,2.677]
[1642047171913,41.27415798,149.42,149.34,49.0697]
[1642047172111,31.23165798,149.42,149.34,49.0697]
[1642047172810,41.27425798,149.42,149.34,49.0697]
[1642047174217,2.677,149.41,149.34,25.8536]
[1642047174425,10.0447,149.39,149.34,25.8536]
[1642047174818,10.2947,149.39,149.34,25.8536]
[1642047176036,10.2947,149.39,149.34,23.1766]
[1642047180029,10.2947,149.39,149.31,2.678]
[1642047180229,10.2947,149.39,149.31,25.9513]
[1642047180230,2.678,149.38,149.31,25.9513]
[1642047180430,10.0479,149.35,149.31,2.678]
[1642047180629,27.9109,149.35,149.31,2.678]
[1642047180829,28.1609,149.35,149.31,2.678]
[1642047181035,31.55546953,149.34,149.31,2.678]
[1642047181232,15.56439994,149.33,149.31,2.678]
[1642047181431,25.61379994,149.33,149.28,2.1877465]
[1642047181631,25.86379994,149.33,149.28,2.1877465]
[1642047182654,10.0504,149.3,149.28,2.1877465]
[1642047183055,10.3004,149.3,149.28,2.1877465]
[1642047183253,6.06439994,149.29,149.28,2.1877465]
[1642047183655,6.31439994,149.29,149.28,2.1877465]
[1642047183957,16.36509994,149.29,149.28,2.1877465]
[1642047188465,6.31439994,149.29,149.28,2.1877465]
[1642047188665,6.06439994,149.29,149.28,2.1877465]
[1642047190069,6.31439994,149.29,149.28,2.1877465]
[1642047192073,0.25,149.29,149.24,27.5333]
[1642047192269,10.3002,149.3,149.24,27.5333]
[1642047193498,10.3002,149.3,149.24,24.8553]
[1642047194299,10.3002,149.3,149.23,95.878]
[1642047194499,2.678,149.29,149.23,95.878]
[1642047194700,10.0516,149.28,149.23,95.878]
[1642047194999,40.51881999,149.28,149.23,95.878]
[1642047195202,40.76881999,149.28,149.23,95.878]
[1642047197100,40.76881999,149.28,149.23,93.2]
[1642047197502,2.678,149.29,149.23,93.2]
[1642047197705,2.678,149.3,149.23,93.2]
[1642047198505,78.82,149.31,149.24,2.678]
[1642047199006,30.54843451,149.32,149.3,10.05]
[1642047199206,3.03219997,149.31,149.3,10.05]
[1642047199410,0.84445346,149.32,149.3,10.05]
[1642047200410,3.03219997,149.31,149.3,10.05]
[1642047201309,0.84445346,149.32,149.3,10.05]
[1642047201511,0.84445346,149.32,149.31,2.1877465]
[1642047201709,3.03219997,149.31,149.3,10.05]
[1642047202108,3.28219997,149.31,149.3,10.05]
[1642047203109,0.25,149.31,149.3,12.2377465]
[1642047203609,0.25,149.31,149.3,10.05]
[1642047205313,10.2995,149.31,149.3,10.05]
[1642047206716,13.33169997,149.31,149.3,10.05]
[1642047206914,14.17615343,149.31,149.3,10.05]
[1642047219827,10.2995,149.31,149.3,12.2377465]
[1642047221827,11.14395346,149.31,149.3,10.05]
[1642047223432,14.17615343,149.31,149.3,10.05]
[1642047226040,10.2995,149.31,149.3,12.2377465]
[1642047226439,10.0495,149.31,149.3,12.2377465]
[1642047226636,38.07036453,149.33,149.3,12.2377465]
[1642047226835,28.02176453,149.33,149.3,12.2377465]
[1642047227037,1.82699156,149.34,149.3,12.2377465]
[1642047227260,1.82699156,149.34,149.31,2.678]
[1642047227458,1.82699156,149.34,149.32,2.1877465]
[1642047228064,27.95615778,149.34,149.32,2.1877465]
[1642047229160,28.20615778,149.34,149.32,2.1877465]
[1642047232369,0.25,149.34,149.32,2.1877465]
[1642047232666,10.2959,149.37,149.32,2.1877465]
[1642047234068,2.678,149.36,149.32,2.1877465]
[1642047234265,2.928,149.36,149.32,2.1877465]
[1642047234666,12.9741,149.36,149.32,2.1877465]
[1642047234869,10.2961,149.36,149.32,2.1877465]
[1642047235571,10.2961,149.36,149.3,2.678]
[1642047236376,0.25,149.36,149.3,2.678]
[1642047236772,2.928,149.37,149.3,2.678]
[1642047237573,12.9735,149.37,149.3,2.678]
[1642047238776,9.5,149.36,149.3,2.678]
[1642047238979,10.0488,149.33,149.29,23.2195]
[1642047239176,10.2988,149.33,149.29,23.2195]
[1642047239978,24.1937753,149.32,149.28,2.678]
[1642047240177,34.4929753,149.32,149.28,2.678]
[1642047241781,24.4437753,149.32,149.28,2.678]
[1642047241980,0.25,149.32,149.28,2.678]
[1642047242182,10.2981,149.34,149.28,2.678]
[1642047242382,0.25,149.34,149.28,2.678]
[1642047242783,2.928,149.35,149.28,2.678]
[1642047243381,2.07622317,149.35,149.28,2.678]
[1642047243581,2.07622317,149.35,149.27,2.678]
[1642047243782,2.07622317,149.35,149.27,2.938]
[1642047244187,12.12292317,149.35,149.27,12.9845]
[1642047245483,2.07622317,149.35,149.27,12.9845]
[1642047245883,2.07622317,149.35,149.28,24.0292]
[1642047246088,1.82622317,149.35,149.29,25.07516956]
[1642047246285,2.678,149.37,149.29,27.75316956]
[1642047247387,10.0461,149.36,149.29,27.75316956]
[1642047247786,10.2961,149.36,149.29,27.75316956]
[1642047247987,10.0461,149.36,149.29,27.75316956]
[1642047249687,10.2961,149.36,149.29,27.75316956]
[1642047250788,10.2961,149.36,149.29,2.678]
[1642047255218,0.25,149.36,149.29,2.678]
[1642047255421,0.25,149.36,149.3,6.0]
[1642047255619,14.80029156,149.38,149.31,2.678]
[1642047255821,4.75499156,149.38,149.31,2.678]
[1642047256021,4.75499156,149.38,149.29,8.678]
[1642047256222,4.75499156,149.38,149.3,23.032]
[1642047256423,2.928,149.38,149.31,2.678]
[1642047259325,12.973,149.38,149.31,2.678]
[1642047259526,2.678,149.38,149.32,6.0]
[1642047259725,1.82699156,149.39,149.32,14.282]
[1642047259928,1.82699156,149.39,149.33,24.5493]
[1642047260725,1.82699156,149.39,149.34,2.678]
[1642047260926,2.07699156,149.39,149.34,2.678]
[1642047261126,1.82699156,149.39,149.34,2.678]
[1642047261528,23.12486519,149.4,149.34,2.678]
[1642047262129,33.16836519,149.4,149.34,2.678]
[1642047262532,33.41836519,149.4,149.34,2.678]
[1642047262729,2.677,149.39,149.33,24.5493]
[1642047263130,2.927,149.39,149.33,24.5493]
[1642047263432,12.9715,149.39,149.33,24.5493]
[1642047264531,22.4715,149.39,149.33,24.5493]
[1642047265332,12.9715,149.39,149.33,24.5493]
[1642047265532,2.927,149.39,149.33,24.5493]
[1642047266533,0.25,149.39,149.33,24.5493]
[1642047266732,23.37486519,149.4,149.33,24.5493]
[1642047267333,33.41816519,149.4,149.33,24.5493]
[1642047267534,33.41816519,149.4,149.33,27.2273]
[1642047268336,35.1010396,149.4,149.33,27.2273]
[1642047268938,33.41816519,149.4,149.33,27.2273]
[1642047269737,2.678,149.39,149.33,27.2273]
[1642047269937,58.93426519,149.4,149.33,27.2273]
[1642047270542,60.6171396,149.4,149.33,27.2273]
[1642047270740,60.6171396,149.4,149.33,24.5493]
[1642047270940,70.1171396,149.4,149.33,24.5493]
[1642047271837,71.94413116,149.4,149.31,2.678]
[1642047272038,78.27713116,149.4,149.3,2.678]